bitfinex/quotes_ETHUSD_20251117
["timestamp","ask_amount","ask_price","bid_price","bid_amount"]
[1763377068265,0.405504,3202.1,3201.5,0.3616]
[1763377069547,0.405504,3202.1,3202.0,0.3616]
[1763377069747,0.405504,3202.2,3202.0,0.3616]
[1763377069941,0.405504,3202.2,3200.7,1.1337408]
[1763377070146,1.1337408,3202.4,3202.1,0.3616]
[1763377070147,0.405504,3202.3,3202.1,0.3616]
[1763377070369,0.19008448,3202.2,3202.1,0.3616]
[1763377071375,0.19008448,3202.2,3201.7,0.3616]
[1763377071588,0.1073243,3202.2,3201.7,0.3616]
[1763377072480,0.1073243,3202.2,3202.1,0.3616]
[1763377072777,0.4947,3202.1,3201.4,0.3626]
[1763377072944,0.405504,3202.3,3201.4,0.3626]
[1763377073146,0.405504,3202.1,3201.4,0.3626]
[1763377073345,0.404704,3202.1,3201.4,0.3626]
[1763377073547,0.404704,3202.1,3201.6,0.001]
[1763377074085,0.4947,3202.1,3201.6,0.001]
[1763377075378,0.405504,3202.3,3201.6,0.001]
[1763377075579,0.4947,3202.1,3201.6,0.001]
[1763377081100,0.898704,3202.3,3201.6,0.3626]
[1763377081305,1.66082587,3202.3,3201.6,0.3626]
[1763377081467,0.405504,3202.1,3201.6,0.3626]
[1763377082004,0.4932,3202.1,3201.6,0.001]
[1763377083103,0.405504,3202.2,3201.7,0.3616]
[1763377083307,0.405504,3202.3,3201.7,0.3616]
[1763377083479,0.29170023,3202.2,3201.7,0.3616]
[1763377083799,0.405504,3202.3,3201.7,0.3616]
[1763377084003,0.29170318,3202.2,3201.7,0.3616]
[1763377084200,0.898704,3202.3,3201.7,0.3616]
[1763377084400,0.29170017,3202.2,3201.7,0.3616]
[1763377084600,0.898704,3202.3,3201.7,0.3616]
[1763377084808,0.2917005,3202.2,3201.7,0.3616]
[1763377084993,0.898704,3202.3,3201.7,0.3616]
[1763377085194,0.29170039,3202.2,3201.7,0.3616]
[1763377085411,0.898704,3202.3,3201.7,0.3616]
[1763377085714,0.29169603,3202.2,3201.7,0.3616]
[1763377085876,0.898704,3202.3,3201.7,0.3616]
[1763377086072,0.3616,3202.2,3201.7,0.3616]
[1763377086904,0.898704,3202.3,3201.7,0.3616]
[1763377086905,0.405504,3202.3,3201.7,0.3616]
[1763377087209,0.405504,3202.3,3202.1,0.3616]
[1763377087606,0.405504,3202.4,3201.7,0.3616]
[1763377087903,0.405504,3202.2,3201.7,0.3616]
[1763377088273,0.4932,3202.2,3201.7,0.3616]
[1763377090407,0.898704,3202.4,3201.7,0.3616]
[1763377090607,0.405504,3202.2,3201.7,0.3616]
[1763377090993,0.405504,3202.3,3201.7,0.3616]
[1763377091395,0.002,3202.2,3201.7,0.3616]
[1763377092011,0.002,3202.2,3202.1,0.3616]
[1763377092908,0.002,3202.2,3202.1,0.7232]
[1763377093102,0.002,3202.2,3202.1,0.3616]
[1763377096586,0.0012,3202.2,3202.1,0.3616]
[1763377101112,0.0012,3202.2,3201.7,0.3616]
[1763377105635,0.0012,3202.2,3201.6,0.001]
[1763377105830,0.4572,3202.1,3201.6,0.001]
[1763377109512,0.0012,3202.2,3201.6,0.001]
[1763377109513,0.0012,3202.2,3201.6,0.3626]
[1763377109706,0.0012,3202.2,3201.7,0.3616]
[1763377109906,0.0012,3202.2,3201.6,0.3626]
[1763377109907,0.4678,3202.2,3201.6,0.3626]
[1763377112747,0.0012,3202.2,3201.6,0.3626]
[1763377114050,0.0012,3202.2,3201.6,0.001]
[1763377114557,0.0012,3202.2,3201.6,0.3626]
[1763377115944,0.0012,3202.2,3201.6,0.001]
[1763377116146,0.4678,3202.2,3201.6,0.001]
[1763377119555,0.467,3202.2,3201.6,0.001]
[1763377121639,0.405504,3202.1,3201.6,0.001]
[1763377121824,0.4829,3201.7,3201.6,0.001]
[1763377122225,0.9495,3201.7,3201.6,0.001]
[1763377122854,0.4829,3201.7,3201.6,0.001]
[1763377123157,0.9495,3201.7,3201.6,0.001]
[1763377123825,0.4829,3201.7,3201.6,0.001]
[1763377124430,0.9495,3201.7,3201.6,0.001]
[1763377127134,0.4829,3201.7,3201.6,0.001]
[1763377133561,5.86649127,3202.2,3201.6,0.3626]
[1763377133562,0.405904,3202.2,3201.6,0.3626]
[1763377133871,1.08774353,3202.2,3201.6,0.7242]
[1763377134260,0.405904,3202.2,3201.6,0.7242]
[1763377134871,0.405904,3202.2,3201.6,0.3626]
[1763377135063,0.4666,3202.1,3201.6,0.3626]
[1763377140896,0.4666,3202.1,3201.6,0.001]
[1763377141878,0.4666,3202.1,3201.6,0.3626]
[1763377142562,0.4658,3202.1,3201.6,0.3626]
[1763377143074,0.405904,3202.2,3201.6,0.3626]
[1763377143794,0.0004,3202.2,3201.6,0.3634]
[1763377144906,0.0004,3202.2,3201.6,0.48857034]
[1763377145277,0.0004,3202.2,3201.7,0.3624]
[1763377146411,0.0004,3202.2,3202.1,0.3624]
[1763377148909,0.0004,3202.2,3202.1,0.7248]
[1763377149212,0.0004,3202.2,3202.1,0.3624]
[1763377155681,0.0004,3202.2,3201.9,0.3624]
[1763377157888,0.4704,3202.2,3201.9,0.3624]
[1763377158083,0.0004,3202.2,3202.0,0.001]
[1763377158290,0.0004,3202.2,3202.1,0.3624]
[1763377163992,0.0004,3202.2,3202.0,0.001]
[1763377165736,0.002,3202.5,3202.0,0.001]
[1763377165941,0.4981,3202.1,3202.0,0.001]
[1763377167691,0.9866,3202.1,3202.0,0.001]
[1763377177955,0.002,3202.2,3202.0,0.3638]
[1763377178929,0.002,3202.2,3202.0,0.001]
[1763377178930,0.4905,3202.2,3202.0,0.001]
[1763377179150,0.487,3202.1,3202.0,0.001]
[1763377181234,0.9755,3202.1,3202.0,0.001]
[1763377183268,0.002,3202.2,3202.0,0.001]
[1763377183476,0.487,3202.1,3202.0,0.001]
[1763377188076,0.9755,3202.1,3202.0,0.001]
[1763377188775,0.9747,3202.1,3202.0,0.001]
[1763377189808,0.4862,3202.1,3202.0,0.001]
[1763377190792,0.9747,3202.1,3202.0,0.001]
[1763377192002,0.4862,3202.1,3202.0,0.001]
[1763377196597,0.9747,3202.1,3202.0,0.001]
[1763377199086,0.002,3202.2,3202.0,0.3646]
[1763377200518,0.002,3202.2,3202.0,0.001]
[1763377200519,0.4631,3202.1,3202.0,0.001]
[1763377201233,0.4982,3202.2,3202.0,0.001]
[1763377201380,0.9593,3202.1,3202.0,0.001]
[1763377203522,0.002,3202.2,3202.0,0.3646]
[1763377203736,0.002,3202.2,3202.0,0.001]
[1763377204531,0.4631,3202.1,3202.0,0.001]
[1763377204906,0.9593,3202.1,3202.0,0.001]
[1763377205510,0.002,3202.2,3202.0,0.3646]
[1763377205828,0.002,3202.2,3202.1,0.3636]
[1763377206004,0.002,3202.2,3202.1,0.48977465]
[1763377206800,0.002,3202.2,3202.1,0.12617465]
[1763377207000,0.002,3202.2,3202.1,0.48977465]
[1763377207594,0.002,3202.2,3202.1,0.85337465]
[1763377208325,0.002,3202.2,3202.1,0.48977465]
[1763377209728,0.002,3202.2,3202.1,0.85337465]
[1763377211641,0.0012,3202.2,3202.1,0.85337465]
[1763377212447,0.0012,3202.2,3202.1,0.48977465]
[1763377215518,0.9605,3202.2,3202.0,0.001]
[1763377215765,0.844804,3202.1,3202.0,0.001]
[1763377215966,1.341004,3202.1,3202.0,0.001]
[1763377216270,2.17234896,3202.1,3202.0,0.001]
[1763377216624,2.15134896,3202.1,3202.0,0.001]
[1763377216848,1.44519942,3202.1,3202.0,0.001]
[1763377226168,1.03969542,3202.1,3202.0,0.001]
[1763377227506,0.56449542,3202.1,3202.0,0.001]
[1763377228606,1.02839542,3202.1,3202.0,0.001]
[1763377230470,1.43389942,3202.1,3202.0,0.001]
[1763377230970,2.16415101,3202.1,3202.0,0.001]
[1763377232067,2.45546661,3202.1,3202.0,0.001]
[1763377232267,2.16415101,3202.1,3202.0,0.001]
[1763377232666,2.45542778,3202.1,3202.0,0.001]
[1763377232865,2.45543359,3202.1,3202.0,0.001]
[1763377234403,2.16415101,3202.1,3202.0,0.001]
[1763377234802,2.16335101,3202.1,3202.0,0.001]
[1763377235954,8.03076745,3202.1,3202.0,0.001]
[1763377241420,8.32195119,3202.1,3202.0,0.001]
[1763377241632,8.32395119,3202.1,3202.0,0.001]
[1763377243753,2.45653475,3202.1,3202.0,0.001]
[1763377243958,1.72628316,3202.1,3202.0,0.001]
[1763377244362,7.5936996,3202.1,3202.0,0.001]
[1763377250450,6.6912996,3202.1,3202.0,0.001]
[1763377250644,7.1705996,3202.1,3202.0,0.001]
[1763377250859,1.76708316,3202.1,3202.0,0.001]
[1763377251567,0.82388316,3202.1,3202.0,0.001]
[1763377251770,1.28238148,3202.1,3202.0,0.001]
[1763377252066,2.22558148,3202.1,3202.0,0.001]
[1763377254285,1.76191074,3202.1,3202.0,0.001]
[1763377254778,2.22581074,3202.1,3202.0,0.001]
[1763377254974,1.76191074,3202.1,3202.0,0.001]
[1763377255964,1.76731242,3202.1,3202.0,0.001]
[1763377257179,1.76731242,3202.1,3202.0,0.3654]
[1763377257180,0.293413,3202.1,3202.0,0.3654]
[1763377257351,0.002,3202.1,3202.0,0.7298]
[1763377257670,0.002,3202.1,3202.0,0.85497622]
[1763377257836,0.0012,3202.1,3202.0,0.85497622]
[1763377258432,0.0012,3202.1,3202.0,0.49057622]
[1763377258637,0.0012,3202.1,3202.0,0.85497622]
[1763377258938,0.0012,3202.1,3202.0,0.12617622]
[1763377259138,0.4842,3202.1,3202.0,0.12617622]
[1763377259672,0.9704,3202.1,3202.0,0.001]
[1763377260040,0.4842,3202.1,3202.0,0.001]
[1763377260565,0.0012,3202.1,3202.0,0.3654]
[1763377260768,0.0012,3202.1,3202.0,0.001]
[1763377260965,0.4842,3202.1,3202.0,0.001]
[1763377261170,7.24332044,3202.1,3202.0,0.001]
[1763377261355,9.51998943,3202.1,3202.0,0.001]
[1763377261696,15.38740587,3202.1,3202.0,0.001]
[1763377261862,18.68340587,3202.1,3202.0,0.001]
[1763377262049,1.5392448,3202.0,3201.7,0.001]
[1763377262251,11.32966124,3201.8,3201.7,0.001]
[1763377262508,13.6830464,3201.8,3201.7,0.001]
[1763377262811,14.1692464,3201.8,3201.7,0.001]
[1763377263303,13.98861533,3201.8,3201.7,0.001]
[1763377263443,13.49834182,3201.8,3201.7,0.001]
[1763377264283,10.20234182,3201.8,3201.7,0.001]
[1763377265095,0.405504,3201.6,3201.5,0.001]
[1763377265301,11.42276117,3201.6,3201.5,0.001]
[1763377265597,11.90896117,3201.6,3201.5,0.001]
[1763377266162,12.57890911,3201.6,3201.5,0.001]
[1763377267186,11.90896117,3201.6,3201.5,0.001]
[1763377267393,13.67319532,3201.6,3201.5,0.001]
[1763377267965,13.79844209,3201.6,3201.5,0.001]
[1763377268816,17.59099823,3201.6,3201.5,0.001]
[1763377268960,4.8352448,3201.5,3201.4,0.001]
[1763377269160,4.8352448,3201.4,3200.1,0.005]
[1763377269359,17.39446892,3201.4,3200.1,0.005]
[1763377269590,21.18685127,3201.4,3200.1,0.005]
[1763377270188,20.51810233,3201.4,3200.1,0.005]
[1763377270504,11.15483851,3201.4,3200.1,0.005]
[1763377270703,11.73709458,3201.4,3200.1,0.005]
[1763377271203,8.61346117,3201.4,3200.1,0.005]
[1763377271582,11.86235508,3201.4,3200.1,0.005]
[1763377271901,8.73872167,3201.4,3200.1,0.005]
[1763377272201,8.73872167,3201.4,3200.1,0.3704]
[1763377274012,9.2291018,3201.4,3200.2,0.3654]
[1763377274182,10.46435663,3201.4,3200.2,0.3654]
[1763377274789,10.46435663,3201.4,3200.5,0.3654]
[1763377274982,10.46435663,3201.4,3200.1,0.005]
[1763377275318,10.46435663,3201.4,3200.1,0.3704]
[1763377275518,9.9739765,3201.4,3200.1,0.005]
[1763377275712,9.9739765,3201.4,3200.9,0.001]
[1763377276896,9.34708812,3201.4,3200.9,0.001]
[1763377277102,9.80468812,3201.4,3200.9,0.001]
[1763377279129,9.34708812,3201.4,3200.9,0.001]
[1763377279328,9.80468812,3201.4,3200.9,0.001]
[1763377280911,9.80388812,3201.4,3200.9,0.001]
[1763377283066,12.92752153,3201.4,3200.9,0.001]
[1763377283215,1.5392448,3201.3,3200.9,0.001]
[1763377283411,5.02768113,3201.3,3200.9,0.001]
[1763377283862,0.405504,3201.2,3200.9,0.001]
[1763377284012,1.60070393,3201.2,3200.9,0.001]
[1763377284412,6.03044473,3201.2,3200.9,0.001]
[1763377284912,5.57284473,3201.2,3200.9,0.001]
[1763377285111,7.06439718,3201.2,3200.9,0.001]
[1763377285421,13.85199718,3201.2,3200.9,0.001]
[1763377286240,13.39439718,3201.2,3200.9,0.001]
[1763377286418,19.15892524,3201.2,3200.9,0.001]
[1763377286607,16.32052524,3201.2,3200.9,0.001]
[1763377286813,15.86292524,3201.2,3200.9,0.001]
[1763377287215,15.37882524,3201.2,3201.1,0.3704]
[1763377287625,15.84562524,3201.2,3201.1,0.005]
[1763377288460,16.31772524,3201.2,3201.1,0.005]
[1763377289351,15.50407201,3201.2,3201.1,0.005]
[1763377289521,8.16054473,3201.2,3201.1,0.5128]
[1763377291068,8.16054473,3201.2,3201.1,0.3704]
[1763377291284,8.16054473,3201.2,3201.1,0.005]
[1763377291437,8.16054473,3201.2,3201.1,0.3704]
[1763377292260,8.16054473,3201.2,3201.1,0.005]
[1763377292261,14.82617279,3201.2,3201.1,0.005]
[1763377292451,15.64222726,3201.2,3201.1,0.005]
[1763377292861,15.76747991,3201.2,3201.1,0.005]
[1763377293263,15.29537991,3201.2,3201.1,0.005]
[1763377293436,15.29537991,3201.2,3201.1,0.3704]
[1763377293437,13.88727279,3201.2,3201.1,0.3704]
[1763377293638,7.75504073,3201.2,3201.1,0.8782]
[1763377294060,0.29129993,3201.2,3201.1,0.8782]
[1763377294664,0.002,3201.4,3201.1,0.8782]
[1763377294848,0.002,3201.4,3201.3,0.3654]
[1763377295172,0.29324314,3201.4,3201.3,0.3654]
[1763377295376,0.69874714,3201.4,3201.3,0.7308]
[1763377295874,0.69874714,3201.4,3201.3,0.3654]
[1763377296171,0.69874714,3201.4,3201.3,0.7308]
[1763377297442,0.69874714,3201.4,3201.3,0.3654]
[1763377297642,0.405504,3201.3,3201.1,0.005]
[1763377298882,0.4668,3201.2,3201.1,0.005]
[1763377299088,0.75780584,3201.2,3201.1,0.005]
[1763377299241,1.22990584,3201.2,3201.1,0.005]
[1763377299984,1.63540984,3201.2,3201.1,0.005]
[1763377300180,2.76915064,3201.2,3201.1,0.005]
[1763377300387,3.68028083,3201.2,3201.1,0.005]
[1763377301483,2.07444003,3201.2,3201.1,0.005]
[1763377302090,2.54654003,3201.2,3201.1,0.005]
[1763377302851,1.60764003,3201.2,3201.1,0.3704]
[1763377303168,0.69650984,3201.2,3201.1,0.3704]
[1763377304085,0.69570984,3201.2,3201.1,0.3704]
[1763377304652,0.69570984,3201.2,3201.1,0.005]
[1763377305274,1.63460984,3201.2,3201.1,0.005]
[1763377305859,1.16250984,3201.2,3201.1,0.005]
[1763377306101,1.97753196,3201.2,3201.1,0.005]
[1763377308399,2.44963196,3201.2,3201.1,0.005]
[1763377309707,2.57487991,3201.2,3201.1,0.005]
[1763377314696,2.10277991,3201.2,3201.1,0.005]
[1763377315092,1.63597991,3201.2,3201.1,0.3704]
[1763377315598,1.51073196,3201.2,3201.1,0.3704]
[1763377316606,1.51073196,3201.2,3201.1,0.5128]
[1763377316895,0.69570984,3201.2,3201.1,0.5128]
[1763377317564,1.19190984,3201.2,3201.1,0.005]
[1763377319192,0.69570984,3201.2,3201.1,0.3704]
[1763377319503,0.69570984,3201.2,3201.1,0.005]
[1763377319664,2.03466771,3201.2,3201.1,0.005]
[1763377320483,2.53366771,3201.2,3201.1,0.005]
[1763377321383,3.02403796,3201.2,3201.1,0.005]
[1763377321597,2.53366771,3201.2,3201.1,0.005]
[1763377321881,2.03466771,3201.2,3201.1,0.005]
[1763377322439,1.53846771,3201.2,3201.1,0.005]
[1763377323183,2.03466771,3201.2,3201.1,0.005]
[1763377323536,2.53366771,3201.2,3201.1,0.005]
[1763377324095,3.20451532,3201.2,3201.1,0.005]
[1763377324296,7.46208468,3201.2,3201.1,0.005]
[1763377324727,7.95248732,3201.2,3201.1,0.005]
[1763377324934,8.07775292,3201.2,3201.1,0.005]
[1763377325136,8.91725707,3201.2,3201.1,0.005]
[1763377325429,4.95392436,3201.2,3201.1,0.005]
[1763377325930,5.79342851,3201.2,3201.1,0.005]
[1763377326289,4.95392436,3201.2,3201.1,0.005]
[1763377326842,2.82498356,3201.2,3201.1,0.5128]
[1763377326983,0.41467144,3201.2,3201.1,0.5128]
[1763377327314,0.82017544,3201.2,3201.1,0.5128]
[1763377328431,0.69490984,3201.2,3201.1,0.5128]
[1763377329422,0.69490984,3201.2,3201.1,0.005]
[1763377329423,8.0535787,3201.2,3201.1,0.005]
[1763377329595,10.14802457,3201.2,3201.1,0.005]
[1763377329794,9.64902457,3201.2,3201.1,0.005]
[1763377330494,10.14802457,3201.2,3201.1,0.005]
[1763377331634,13.27185313,3201.2,3201.1,0.005]
[1763377331832,9.64902457,3201.2,3201.1,0.005]
[1763377331987,10.14802457,3201.2,3201.1,0.005]
[1763377334337,0.405504,3200.9,3200.7,0.001]
[1763377334638,0.4051,3201.0,3200.7,0.001]
[1763377334639,8.62693468,3200.8,3200.7,0.001]
[1763377335039,9.25120852,3200.8,3200.7,0.001]
[1763377339049,9.69112362,3200.8,3200.7,0.001]
[1763377339227,11.56019843,3200.8,3200.7,0.001]
[1763377339536,11.06119843,3200.8,3200.7,0.001]
[1763377339724,11.53619843,3200.8,3200.7,0.001]
[1763377340130,11.53619843,3200.8,3200.1,0.005]
[1763377340131,2.4478448,3200.7,3200.1,0.00275]
[1763377340338,0.405504,3200.5,3199.8,0.29056871]
[1763377340513,0.29104457,3200.4,3199.8,0.29056871]
[1763377340709,0.405504,3200.2,3199.8,0.29056871]
[1763377340924,0.405504,3200.5,3200.1,0.2174]
[1763377341146,7.00933939,3200.2,3200.1,0.2174]
[1763377341311,7.30030199,3200.2,3200.1,0.2174]
[1763377341638,1.5392448,3200.1,3198.4,1.1337408]
[1763377341830,1.5392448,3200.1,3199.1,0.59305986]
[1763377342036,1.5392448,3200.1,3200.0,0.2174]
[1763377342746,1.83013867,3200.1,3200.0,0.2174]
[1763377343126,1.5392448,3200.1,3200.0,0.2174]
[1763377343324,3.03837778,3200.1,3199.1,0.005]
[1763377343533,0.405504,3199.7,3199.5,0.2174]
[1763377344044,0.405504,3199.7,3199.6,0.2174]
[1763377344441,0.405504,3199.7,3199.3,0.2174]
[1763377344643,0.405504,3199.4,3199.1,0.005]
[1763377344829,0.405504,3199.4,3199.1,0.2224]
[1763377345155,0.405504,3199.4,3199.3,0.2174]
[1763377345353,0.93972744,3200.0,3199.3,0.4348]
[1763377345570,0.405504,3200.1,3199.4,0.2174]
[1763377345738,0.69620155,3200.0,3199.9,0.2174]
[1763377346095,0.69620155,3200.0,3199.4,0.2174]
[1763377346220,0.405504,3199.8,3199.4,0.2174]
[1763377346626,0.405504,3199.8,3199.7,0.2174]
[1763377347023,5.87559859,3200.0,3199.7,0.2174]
[1763377347356,6.46315845,3200.0,3199.8,0.2174]
[1763377347659,6.28110259,3200.0,3199.9,0.2174]
[1763377347846,6.57174849,3200.0,3199.9,0.2174]
[1763377349058,0.6961499,3200.0,3199.9,0.4348]
[1763377350055,0.6953499,3200.0,3199.9,0.4348]
[1763377350255,0.6953499,3200.0,3199.9,0.2174]
[1763377350828,6.57094849,3200.0,3199.9,0.2174]
[1763377353693,6.57100891,3200.0,3199.9,0.2174]
[1763377354680,7.2283098,3200.0,3199.4,0.001]
[1763377354890,0.405504,3199.8,3199.4,0.001]
[1763377355273,0.405504,3199.8,3199.7,0.2174]
[1763377359401,0.405504,3199.8,3199.7,0.4348]
[1763377360005,0.405504,3199.8,3199.7,0.2174]
[1763377360209,0.69644138,3199.8,3199.7,0.2174]
[1763377361609,1.21123449,3199.8,3199.7,0.2174]
[1763377362276,2.19373449,3199.8,3199.4,0.001]
[1763377362481,6.36879859,3199.5,3199.4,0.001]
[1763377362985,7.55473104,3199.5,3199.4,0.001]
[1763377364177,7.06543104,3199.5,3199.4,0.001]
[1763377364381,7.83343506,3199.5,3199.4,0.001]
[1763377364613,7.34023506,3199.5,3199.4,0.001]
[1763377364788,1.46463647,3199.5,3199.4,0.2184]
[1763377364995,0.69663245,3199.5,3199.4,0.4358]
[1763377366983,0.405504,3199.5,3199.4,0.4358]
[1763377367181,0.69670762,3199.5,3199.4,0.4358]
[1763377369333,0.405504,3199.5,3199.4,0.4358]
[1763377370797,0.2204,3200.0,3199.4,0.4358]
[1763377370798,0.002,3200.0,3199.4,0.4358]
[1763377371127,0.002,3200.0,3199.9,0.2174]
[1763377371706,0.36519285,3200.2,3200.1,0.2174]
[1763377372034,0.29129246,3200.2,3199.4,0.001]
[1763377372236,5.87559859,3199.8,3199.4,0.001]
[1763377372398,5.87559859,3200.1,3199.7,0.2174]
[1763377372594,0.29127823,3200.0,3199.7,0.2174]
[1763377372801,0.29127823,3199.9,3199.7,0.2174]
[1763377373131,5.87559859,3200.3,3199.7,0.2174]
[1763377373439,0.29128472,3200.2,3199.8,0.2174]
[1763377373640,0.29128472,3200.1,3199.8,0.2174]
[1763377373799,0.69678872,3200.0,3199.8,0.2174]
[1763377374133,0.405504,3200.0,3199.8,0.2174]
[1763377376249,0.405504,3200.0,3199.5,0.2174]
[1763377376556,0.405504,3200.0,3199.4,0.001]
[1763377377048,0.405504,3200.0,3199.4,0.2184]
[1763377380219,0.405504,3200.2,3199.9,0.2174]
[1763377380530,0.405504,3200.2,3199.4,0.001]
[1763377380531,0.405504,3200.0,3199.4,0.001]
[1763377381038,0.405504,3200.0,3199.4,0.2184]
[1763377381435,0.405504,3199.7,3199.4,0.001]
[1763377381636,6.78060259,3199.5,3199.4,0.001]
[1763377381842,0.905004,3199.5,3199.4,0.001]
[1763377382364,7.25900259,3199.5,3199.4,0.001]
[1763377382548,7.55015944,3199.5,3199.4,0.001]
[1763377384935,0.69666085,3199.5,3199.4,0.2184]
[1763377387060,1.19616085,3199.5,3199.4,0.001]
[1763377387224,2.38173679,3199.5,3199.4,0.001]
[1763377387438,1.90333679,3199.5,3199.4,0.001]
[1763377387638,2.02863496,3199.5,3199.4,0.001]
[1763377388449,0.405504,3199.4,3199.1,0.00175]
[1763377388653,0.405504,3199.4,3198.8,0.15544]
[1763377388829,0.405504,3199.4,3199.3,0.1115]
[1763377390147,0.405504,3199.4,3198.9,0.1115]
[1763377390527,0.405504,3199.1,3198.8,0.04394]
[1763377392067,0.405504,3199.1,3199.0,0.1115]
[1763377392669,0.12530641,3199.3,3199.0,0.1115]
[1763377392866,0.405504,3199.2,3199.0,0.1115]
[1763377393666,0.405504,3199.2,3198.8,0.04394]
[1763377395971,0.404704,3199.2,3198.8,0.04394]
[1763377396136,1.0931049,3199.2,3198.8,0.04394]
[1763377396867,1.0931049,3199.2,3199.1,0.1115]
[1763377397068,0.404704,3199.2,3199.1,0.1115]
[1763377397234,0.12530641,3199.3,3199.1,0.1115]
[1763377397434,5.87559859,3199.8,3199.2,0.1115]
[1763377397634,0.29115052,3199.7,3199.2,0.1115]
[1763377397834,1.23088679,3199.6,3199.2,0.1115]
[1763377398036,0.405504,3199.5,3199.2,0.1115]
[1763377398433,0.53080217,3199.5,3199.2,0.1115]
[1763377399271,1.1357408,3200.4,3199.4,0.1115]
[1763377399457,1.147451,3200.0,3199.5,0.1115]
[1763377399662,0.405504,3199.6,3199.1,0.1115]
[1763377401051,0.405504,3199.6,3199.5,0.1115]
[1763377401253,0.69668073,3199.6,3199.5,0.1115]
[1763377401554,1.62428073,3199.6,3198.8,0.15544]
[1763377401749,1.333104,3199.6,3198.8,0.15544]
[1763377401972,1.333104,3199.6,3198.9,0.1115]
[1763377402380,0.882304,3199.6,3198.9,0.1115]
[1763377402588,0.405504,3199.6,3198.9,0.1115]
[1763377405270,0.29137699,3199.5,3198.9,0.1115]
[1763377405470,0.405504,3199.6,3198.9,0.1115]
[1763377405671,0.29139007,3199.5,3198.9,0.1115]
[1763377405871,0.53079157,3199.6,3198.9,0.1115]
[1763377406097,0.29139,3199.5,3198.9,0.1115]
[1763377406298,0.53079157,3199.6,3198.9,0.1115]
[1763377406595,0.29142702,3199.5,3198.9,0.1115]
[1763377406764,0.53079157,3199.6,3198.9,0.1115]
[1763377406964,0.29142702,3199.5,3198.9,0.1115]
[1763377407288,0.53079157,3199.6,3198.9,0.1115]
[1763377407496,0.29147011,3199.5,3198.9,0.1115]
[1763377407707,0.53079157,3199.6,3198.9,0.1115]
[1763377407906,0.29147005,3199.5,3198.9,0.1115]
[1763377408103,0.53079157,3199.6,3198.8,0.04394]
[1763377408273,5.7304317,3199.8,3198.8,0.04394]
[1763377408274,0.405504,3199.4,3198.8,0.04394]
[1763377408596,0.405504,3199.4,3198.5,0.001]
[1763377408597,0.4889,3198.9,3198.5,0.001]
[1763377409395,0.9611,3198.9,3198.5,0.001]
[1763377412616,0.405504,3198.9,3198.5,0.001]
[1763377413413,0.405504,3198.9,3198.8,0.1115]
[1763377414472,0.405504,3198.9,3198.5,0.001]
[1763377414886,0.405504,3198.9,3198.8,0.1115]
[1763377415195,0.12531308,3199.0,3198.8,0.1115]
[1763377415395,0.405504,3199.3,3198.9,0.1115]
[1763377415566,0.53081119,3199.0,3198.9,0.1115]
[1763377416401,0.53081119,3199.0,3198.5,0.1125]
[1763377416903,0.53081119,3199.0,3198.9,0.1115]
[1763377417101,5.7304317,3199.7,3198.9,0.1115]
[1763377417271,0.405504,3199.4,3198.9,0.1115]
[1763377417477,0.12529738,3199.2,3198.9,0.1115]
[1763377417872,0.12529738,3199.2,3199.1,0.1115]
[1763377419087,0.12449738,3199.2,3199.1,0.1115]
[1763377421823,0.12649738,3199.2,3199.1,0.1115]
[1763377432847,0.12649738,3199.2,3198.9,0.001]
[1763377433069,0.12649738,3199.2,3199.1,0.1115]
[1763377433340,0.002,3199.2,3199.1,0.1115]
[1763377433519,0.002,3199.2,3199.1,0.223]
[1763377434106,0.002,3199.2,3199.1,0.1115]
[1763377434742,0.12728051,3199.2,3199.1,0.1115]
[1763377434957,1.08838051,3199.2,3198.9,0.001]
[1763377435118,0.894404,3199.0,3198.9,0.001]
[1763377435465,0.405504,3199.0,3198.9,0.001]
[1763377435747,0.12530719,3199.0,3198.9,0.1125]
[1763377435903,0.12530719,3199.0,3198.9,0.224]
[1763377436421,0.002,3199.2,3198.9,0.224]
[1763377436620,0.002,3199.2,3199.1,0.1115]
[1763377436804,0.002,3199.2,3198.9,0.001]
[1763377437006,0.4742,3199.1,3198.9,0.1125]
[1763377437412,0.4742,3199.1,3198.9,0.001]
[1763377437847,0.4742,3199.1,3199.0,0.1115]
[1763377438529,0.4742,3199.1,3199.0,0.223]
[1763377438827,0.002,3199.2,3199.0,0.223]
[1763377439005,0.002,3199.2,3199.1,0.1115]
[1763377439548,0.12729149,3199.2,3199.1,0.1115]
[1763377440140,0.002,3199.2,3199.1,0.223]
[1763377440546,0.002,3199.2,3199.1,0.1115]
[1763377441206,0.002,3199.2,3199.1,0.223]
[1763377442034,0.0012,3199.2,3199.1,0.223]
[1763377443945,0.0012,3199.2,3199.1,0.1115]
[1763377444850,0.0012,3199.2,3199.1,0.223]
[1763377446220,0.0012,3199.2,3198.9,0.001]
[1763377447155,0.0012,3199.2,3199.1,0.1115]
[1763377449674,0.0012,3199.2,3198.9,0.001]
[1763377450384,0.12528129,3199.1,3198.9,0.001]
[1763377450674,0.4537,3199.0,3198.9,0.001]
[1763377451163,0.9463,3199.0,3198.9,0.001]
[1763377452164,1.351804,3199.0,3198.9,0.001]
[1763377452370,0.859204,3199.0,3198.9,0.001]
[1763377452742,1.351804,3199.0,3198.9,0.001]